bitfinex/quotes_SOLUSD_20250529
["timestamp","ask_amount","ask_price","bid_price","bid_amount"]
[1748495138236,74.61300173,172.03,172.0,18.64964886]
[1748495139432,89.14535073,172.03,171.98,18.64964886]
[1748495139721,101.54022795,172.03,171.98,18.64964886]
[1748495140030,101.54022795,172.03,171.98,31.04452608]
[1748495140722,89.14535073,172.03,171.99,12.39487722]
[1748495143335,101.54022795,172.03,171.98,31.04452608]
[1748495143522,81.19487722,172.02,171.97,12.39487722]
[1748495143728,32.74253141,172.01,171.96,31.04452608]
[1748495143913,32.74253141,172.01,171.94,18.64964886]
[1748495143914,20.34765419,172.01,171.94,18.64964886]
[1748495144109,68.8,172.0,171.97,12.39487722]
[1748495145942,5.81429152,171.99,171.96,12.39487722]
[1748495146124,5.81429152,171.99,171.96,18.64964886]
[1748495146437,5.81429152,171.99,171.96,31.04452608]
[1748495149407,68.8,171.98,171.96,31.04452608]
[1748495150141,5.81496772,171.97,171.96,31.04452608]
[1748495152541,26.92891593,172.01,171.96,31.04452608]
[1748495152542,5.81395348,172.0,171.96,31.04452608]
[1748495154152,5.81395348,172.0,171.98,12.39487722]
[1748495154348,5.81327752,172.02,171.99,31.04452608]
[1748495154646,68.8,172.01,172.0,31.04452608]
[1748495155843,68.8,172.01,172.0,18.64964886]
[1748495156219,81.19487722,172.01,171.97,26.0]
[1748495156417,5.81395348,172.0,171.97,26.0]
[1748495156638,32.74371442,172.0,171.96,18.64964886]
[1748495157525,20.3488372,172.0,171.96,31.04452608]
[1748495158124,20.3488372,172.0,171.97,12.39487722]
[1748495158323,68.8,171.99,171.97,12.39487722]
[1748495158940,68.8,171.99,171.97,18.64964886]
[1748495158941,5.8146296,171.98,171.97,18.64964886]
[1748495159134,74.6146296,171.98,171.97,31.04452608]
[1748495161555,74.6146296,171.98,171.97,18.64964886]
[1748495162743,74.6146296,171.98,171.95,18.64964886]
[1748495162923,68.8,171.97,171.94,26.0]
[1748495163123,5.81530588,171.96,171.94,26.0]
[1748495164250,81.19487722,171.95,171.88,1.5905]
[1748495164549,81.19487722,171.94,171.89,38.39487722]
[1748495164760,81.19487722,171.94,171.89,12.39487722]
[1748495164929,81.19487722,171.94,171.9,18.64964886]
[1748495165246,5.81632059,171.93,171.9,18.64964886]
[1748495165953,18.21119781,171.93,171.88,18.64964886]
[1748495166127,32.75199929,171.93,171.88,18.64964886]
[1748495166935,12.39487722,171.92,171.88,18.64964886]
[1748495167135,20.35712207,171.93,171.88,18.64964886]
[1748495167136,12.39487722,171.91,171.88,18.64964886]
[1748495167340,5.81767409,171.89,171.88,18.64964886]
[1748495168030,5.81767409,171.89,171.86,18.64964886]
[1748495168031,68.8,171.88,171.86,18.64964886]
[1748495168237,68.8,171.87,171.85,18.64964886]
[1748495169377,68.8,171.87,171.83,18.64964886]
[1748495169378,18.21356685,171.86,171.83,18.64964886]
[1748495169539,12.39487722,171.84,171.76,12.8708]
[1748495169863,12.39487722,171.82,171.77,12.39487722]
[1748495170064,12.39487722,171.82,171.77,38.39487722]
[1748495170563,12.39487722,171.82,171.78,18.64964886]
[1748495171328,12.39487722,171.83,171.78,31.04452608]
[1748495171563,5.81970552,171.83,171.8,18.64964886]
[1748495172064,18.21458274,171.83,171.77,26.0]
[1748495172229,12.39487722,171.81,171.77,26.0]
[1748495172431,12.39487722,171.8,171.76,18.64964886]
[1748495172933,12.39487722,171.79,171.75,18.64964886]
[1748495173339,5.82139946,171.78,171.75,18.64964886]
[1748495173536,5.82139946,171.78,171.74,38.39487722]
[1748495174545,12.39487722,171.81,171.76,12.39487722]
[1748495174743,68.8,171.8,171.76,12.39487722]
[1748495175946,68.8,171.8,171.75,18.64964886]
[1748495176263,68.8,171.8,171.76,12.39487722]
[1748495176462,68.8,171.8,171.78,31.04452608]
[1748495176661,68.8,171.8,171.79,31.04452608]
[1748495178468,68.8,171.8,171.79,62.86558667]
[1748495179270,68.8,171.8,171.79,63.14990981]
[1748495180873,51.8791,171.88,171.83,18.64964886]
[1748495180874,68.8,171.86,171.83,18.64964886]
[1748495181053,68.8,171.85,171.84,31.04452608]
[1748495184871,68.8,171.85,171.84,18.64964886]
[1748495185166,68.8,171.85,171.84,31.04452608]
[1748495186460,68.8,171.85,171.84,36.86389293]
[1748495186776,68.8,171.89,171.85,18.64964886]
[1748495186980,68.8,171.89,171.87,12.39487722]
[1748495187184,68.8,171.88,171.87,18.64964886]
[1748495187390,68.8,171.88,171.87,31.04452608]
[1748495187678,68.8,171.88,171.87,18.64964886]
[1748495188044,68.8,171.88,171.77,14.55385241]
[1748495188270,12.39487722,171.86,171.83,18.64964886]
[1748495188470,68.8,171.85,171.81,18.64964886]
[1748495188772,68.8,171.84,171.81,18.64964886]
[1748495188950,68.8,171.84,171.81,12.39487722]
[1748495189354,68.8,171.84,171.81,18.21520235]
[1748495189549,68.8,171.84,171.83,18.64964886]
[1748495189857,74.61936685,171.84,171.81,18.64964886]
[1748495190058,68.8,171.84,171.81,18.64964886]
[1748495190270,68.8,171.84,171.82,12.39487722]
[1748495190887,74.61950647,171.84,171.81,12.39487722]
[1748495192167,68.8,171.84,171.81,12.39487722]
[1748495192368,68.8,171.84,171.82,31.04452608]
[1748495193263,68.8,171.84,171.79,24.47066498]
[1748495193471,68.8,171.84,171.82,12.39487722]
[1748495195655,68.8,171.84,171.83,12.39487722]
[1748495195880,68.8,171.84,171.83,31.04452608]
[1748495196676,5.81904345,171.85,171.83,18.64964886]
[1748495197483,5.81904345,171.85,171.78,1.5421]
[1748495197670,18.21392067,171.85,171.8,12.39487722]
[1748495198065,5.81904345,171.85,171.8,12.39487722]
[1748495198270,18.21392067,171.85,171.8,12.39487722]
[1748495199082,12.39487722,171.83,171.75,32.6187]
[1748495199276,81.19487722,171.82,171.78,18.64964886]
[1748495199481,12.39487722,171.81,171.73,44.62667613]
[1748495199671,68.8,171.8,171.73,44.62667613]
[1748495199988,68.8,171.79,171.77,12.39487722]
[1748495200196,68.8,171.78,171.77,12.39487722]
[1748495200404,68.8,171.78,171.77,18.64964886]
[1748495201061,68.8,171.78,171.77,12.39487722]
[1748495201264,68.8,171.78,171.77,18.64964886]
[1748495201677,68.8,171.78,171.77,31.04452608]
[1748495202192,68.8,171.78,171.75,18.64964886]
[1748495202864,68.8,171.78,171.77,12.39487722]
[1748495205564,5.82038298,171.81,171.77,12.39487722]
[1748495206166,18.2149929,171.82,171.77,12.39487722]
[1748495206377,5.82011568,171.82,171.79,18.64964886]
[1748495206895,18.21466503,171.83,171.79,18.64964886]
[1748495207064,68.8,171.82,171.76,18.64964886]
[1748495207266,68.8,171.82,171.79,18.64964886]
[1748495208498,74.62034572,171.82,171.79,18.64964886]
[1748495208866,74.62034572,171.82,171.76,18.64964886]
[1748495209066,74.62034572,171.82,171.79,18.64964886]
[1748495209290,87.01522294,171.82,171.74,26.0]
[1748495209483,12.39487722,171.8,171.75,31.04452608]
[1748495210691,5.82106059,171.79,171.75,31.04452608]
[1748495211283,5.82106059,171.79,171.76,12.39487722]
[1748495212602,68.8,171.81,171.78,12.39487722]
[1748495212889,68.7,171.8,171.78,12.39487722]
[1748495213084,68.7,171.8,171.74,50.47230377]
[1748495213085,68.7,171.8,171.77,12.39487722]
[1748495214097,68.7,171.8,171.76,12.39487722]
[1748495215176,5.82106059,171.79,171.76,12.39487722]
[1748495217471,68.7,171.78,171.76,12.39487722]
[1748495219279,68.7,171.78,171.77,12.39487722]
[1748495220201,68.7,171.78,171.77,31.04452608]
[1748495220571,16.95978603,171.83,171.78,18.64964886]
[1748495220904,12.39487722,171.87,171.82,12.39487722]
[1748495221082,68.7,171.83,171.82,12.39487722]
[1748495221283,68.7,171.83,171.81,12.39487722]
[1748495221483,74.519807,171.83,171.81,12.39487722]
[1748495221804,68.7,171.83,171.81,18.64964886]
[1748495222301,74.51970876,171.83,171.81,12.39487722]
[1748495222472,68.7,171.83,171.81,12.39487722]
[1748495222876,68.7,171.83,171.81,18.64964886]
[1748495223409,68.7,171.83,171.81,12.39487722]
[1748495223578,74.51972227,171.83,171.81,12.39487722]
[1748495223775,86.91459949,171.83,171.78,18.64964886]
[1748495224007,81.09487722,171.82,171.78,18.64964886]
[1748495224506,12.39487722,171.8,171.76,18.64964886]
[1748495225779,5.82106059,171.79,171.76,18.64964886]
[1748495225976,68.7,171.78,171.74,31.04452608]
[1748495226181,68.7,171.78,171.74,18.64964886]
[1748495226490,68.7,171.78,171.73,26.0]
[1748495226491,68.7,171.77,171.73,26.0]
[1748495226693,12.39487722,171.74,171.7,18.64964886]
[1748495227307,68.7,171.76,171.74,18.64964886]
[1748495227488,5.82078548,171.8,171.76,18.64964886]
[1748495227489,68.7,171.79,171.76,18.64964886]
[1748495227691,68.7,171.79,171.78,12.39487722]
[1748495227897,12.6867,171.88,171.78,12.39487722]
[1748495227898,68.7,171.86,171.8,18.64964886]
[1748495228206,11.14,171.88,171.84,12.39487722]
[1748495228388,23.53487722,171.88,171.83,12.39487722]
[1748495228697,12.39487722,171.86,171.8,18.64964886]
[1748495228898,12.39487722,171.85,171.8,31.04452608]
[1748495229212,12.39487722,171.85,171.8,18.64964886]
[1748495229418,12.39487722,171.83,171.79,18.64964886]
[1748495229787,12.39487722,171.84,171.79,31.04452608]
[1748495231215,12.39487722,171.85,171.81,18.64964886]
[1748495231593,18.21364727,171.86,171.81,12.39487722]
[1748495231997,12.39487722,171.86,171.81,12.39487722]
[1748495232800,18.21322946,171.87,171.81,12.39487722]
[1748495233199,12.39487722,171.86,171.81,12.39487722]
[1748495233406,12.39487722,171.85,171.8,31.04452608]
[1748495234413,5.81835224,171.87,171.81,12.39487722]
[1748495234719,12.39487722,171.86,171.81,12.39487722]
[1748495235204,86.91411495,171.85,171.8,31.04452608]
[1748495236822,74.51923773,171.85,171.81,12.39487722]
[1748495237530,74.51923773,171.85,171.8,12.39487722]
[1748495238123,12.39487722,171.84,171.78,18.64964886]
[1748495238303,12.39487722,171.84,171.8,18.64964886]
[1748495238624,74.51923773,171.85,171.8,31.04452608]
[1748495238822,86.91411495,171.85,171.8,12.39487722]
[1748495240934,12.39487722,171.82,171.77,38.39487722]
[1748495241105,68.7,171.81,171.77,38.39487722]
[1748495241296,68.7,171.81,171.79,12.39487722]
[1748495241498,68.7,171.81,171.8,12.39487722]
[1748495242628,68.7,171.85,171.8,18.49992212]
[1748495242825,81.09487722,171.85,171.8,12.39487722]
[1748495243435,86.91390629,171.85,171.79,12.39487722]
[1748495243635,12.39487722,171.84,171.79,12.39487722]
[1748495244515,5.81970552,171.83,171.79,12.39487722]
[1748495245543,68.7,171.82,171.79,12.39487722]
[1748495246042,68.7,171.82,171.8,12.39487722]
[1748495246735,68.7,171.82,171.81,31.04452608]
[1748495246929,198.37487722,171.87,171.82,18.64964886]
[1748495247133,81.09487722,171.86,171.81,12.39487722]
[1748495247827,86.91384137,171.86,171.81,12.39487722]
[1748495248234,68.7,171.86,171.83,31.04452608]
[1748495248719,68.7,171.85,171.83,31.04452608]
[1748495249545,68.7,171.85,171.84,31.04452608]
[1748495250352,68.7,171.85,171.84,18.64964886]
[1748495250571,68.7,171.85,171.84,31.04452608]
[1748495252653,68.7,171.85,171.84,36.86389293]
[1748495252843,68.7,171.85,171.84,31.04452608]
[1748495254195,44.21390544,171.85,171.74,6.2642]
[1748495254364,12.39487722,171.8,171.72,7.48536428]
[1748495254546,12.39487722,171.8,171.74,12.39487722]
[1748495254745,12.39487722,171.79,171.74,12.39487722]
[1748495255051,12.39487722,171.8,171.75,31.04452608]
[1748495255634,18.21589082,171.8,171.75,31.04452608]
[1748495257062,18.21589082,171.8,171.75,18.64964886]
[1748495257435,5.8210136,171.8,171.75,31.04452608]
[1748495257635,44.48040725,171.81,171.77,12.39487722]
[1748495257843,44.48040725,171.81,171.75,18.933972]
[1748495258060,44.48040725,171.81,171.77,12.39487722]
[1748495258947,56.87528447,171.81,171.77,18.64964886]
[1748495261764,68.7,171.8,171.77,18.64964886]
[1748495262266,68.7,171.8,171.79,31.04452608]
[1748495262764,68.7,171.8,171.79,18.64964886]
[1748495265070,68.7,171.8,171.78,12.39487722]
[1748495266658,68.7,171.8,171.79,12.39487722]
[1748495266837,68.7,171.8,171.77,18.64964886]
[1748495267045,68.7,171.8,171.78,12.39487722]
[1748495267657,68.7,171.79,171.78,31.04452608]
[1748495269561,68.7,171.79,171.78,18.64964886]
[1748495269967,68.7,171.79,171.78,31.04452608]
[1748495270648,68.7,171.79,171.78,18.64964886]
[1748495270968,68.7,171.79,171.78,31.04452608]
[1748495272675,68.7,171.79,171.78,18.64964886]
[1748495272871,68.7,171.79,171.78,31.04452608]
[1748495273483,68.7,171.79,171.78,18.64964886]
[1748495273652,68.7,171.79,171.78,31.04452608]
[1748495274589,5.82106059,171.79,171.71,18.64964886]
[1748495274749,18.21593781,171.79,171.72,0.14216157]
[1748495274947,18.21593781,171.79,171.75,18.64964886]
[1748495275278,12.39487722,171.78,171.75,18.64964886]
[1748495275853,12.39487722,171.78,171.73,12.39487722]
[1748495275854,12.39487722,171.77,171.7,1.583]
[1748495276058,12.39487722,171.76,171.7,13.97787722]
[1748495276364,38.6,171.78,171.7,12.39487722]
[1748495276365,12.39487722,171.75,171.7,12.39487722]
[1748495276580,12.39487722,171.74,171.69,31.04452608]
[1748495276784,12.39487722,171.74,171.69,57.04452608]
[1748495276964,18.21782263,171.74,171.69,57.04452608]
[1748495277376,12.39487722,171.73,171.69,44.64964886]
[1748495277679,12.39487722,171.73,171.69,18.64964886]
[1748495278071,5.82294541,171.74,171.69,31.04452608]
[1748495278682,18.21782263,171.74,171.69,31.04452608]
[1748495279285,18.21782263,171.74,171.69,18.64964886]
[1748495279480,18.21782263,171.74,171.69,31.04452608]
[1748495281260,18.21782263,171.74,171.69,18.64964886]
[1748495282354,12.39487722,171.73,171.69,18.64964886]
[1748495282555,68.7,171.72,171.69,18.64964886]
[1748495283191,5.82377263,171.71,171.69,18.64964886]
[1748495284161,74.5234992,171.72,171.69,18.64964886]
[1748495285175,74.5234992,171.72,171.68,26.0]
[1748495285387,74.5234992,171.72,171.64,5.82588977]
[1748495285388,68.7,171.71,171.67,26.0]
[1748495285564,81.09487722,171.71,171.67,26.0]
[1748495285760,68.7,171.71,171.68,18.64964886]
[1748495285969,68.7,171.71,171.68,31.04452608]
[1748495286172,68.7,171.71,171.68,18.64964886]
[1748495286480,68.7,171.71,171.7,18.64964886]
[1748495286787,68.7,171.71,171.67,26.0]
[1748495286982,81.09487722,171.71,171.67,26.0]
[1748495287185,5.82445104,171.69,171.62,1.5517]
[1748495287483,68.7,171.68,171.65,31.04452608]
[1748495287777,68.7,171.68,171.65,18.64964886]
[1748495287961,68.7,171.68,171.65,31.04452608]
[1748495288161,68.7,171.68,171.65,18.64964886]
[1748495288363,81.09487722,171.68,171.65,18.64964886]
[1748495288599,86.9197702,171.68,171.65,18.64964886]
[1748495289381,74.52489298,171.68,171.65,18.64964886]
[1748495289588,86.9197702,171.68,171.65,18.64964886]
[1748495289887,86.9197702,171.68,171.59,28.48214296]
[1748495289888,12.39487722,171.66,171.6,18.64964886]
[1748495290205,12.39487722,171.63,171.59,26.0]
[1748495290691,38.58,171.65,171.6,12.39487722]
[1748495290986,50.97487722,171.65,171.6,12.39487722]
[1748495291196,20.38686874,171.68,171.58,18.64964886]
[1748495291490,38.58,171.67,171.62,18.64964886]
[1748495291657,38.58,171.67,171.62,31.04452608]
[1748495292258,56.80006933,171.67,171.62,12.39487722]
[1748495292486,56.80006933,171.67,171.63,18.64964886]
[1748495292683,50.97487722,171.67,171.63,18.64964886]
[1748495292862,38.58,171.67,171.63,31.04452608]
[1748495293268,44.4052096,171.67,171.63,31.04452608]
[1748495293998,56.80008682,171.67,171.63,18.64964886]
[1748495294168,12.39487722,171.66,171.63,18.64964886]
[1748495294372,56.80008682,171.67,171.63,18.64964886]
[1748495294588,56.80008682,171.67,171.62,18.64964886]
[1748495295088,12.39487722,171.65,171.62,18.64964886]
[1748495295304,12.39487722,171.65,171.57,27.5159]
[1748495295467,81.09487722,171.64,171.59,12.39487722]
[1748495295674,81.09487722,171.64,171.58,18.64964886]
[1748495295675,68.7,171.64,171.58,18.64964886]
[1748495295880,74.5262583,171.64,171.6,12.39487722]
[1748495296193,86.92113552,171.64,171.59,12.39487722]
[1748495296666,74.5262583,171.64,171.6,12.39487722]
[1748495296871,74.5262583,171.64,171.58,24.47778961]
[1748495297070,74.5262583,171.64,171.6,12.39487722]
[1748495297880,68.7,171.64,171.6,12.39487722]
[1748495298269,68.6,171.63,171.6,12.39487722]
[1748495298893,5.82623983,171.64,171.57,27.5159]
[1748495298894,68.6,171.62,171.61,31.04452608]
[1748495299082,159.69487722,171.66,171.61,31.04452608]
[1748495299616,153.12554867,171.66,171.59,12.39487722]
[1748495299777,12.39487722,171.65,171.61,18.64964886]
[1748495299972,165.52042589,171.66,171.61,31.04452608]
[1748495300198,147.3,171.66,171.63,18.64964886]
[1748495300501,147.3,171.66,171.63,12.39487722]
[1748495300686,147.3,171.66,171.62,31.04452608]
[1748495303404,68.6,171.65,171.62,31.04452608]
[1748495304210,68.6,171.65,171.64,18.64964886]
[1748495304705,68.6,171.65,171.64,12.39487722]
[1748495305007,153.1238061,171.71,171.64,12.39487722]
[1748495305184,153.1238061,171.71,171.66,12.39487722]
[1748495305390,153.1238061,171.71,171.67,12.39487722]
[1748495305703,147.3,171.71,171.67,12.39487722]
[1748495305902,147.3,171.71,171.68,12.39487722]
[1748495306107,147.3,171.71,171.69,12.39487722]
[1748495306599,147.3,171.71,171.68,12.39487722]
[1748495308079,11.02,171.73,171.7,18.64964886]
[1748495308279,18.21755178,171.75,171.7,31.04452608]
[1748495308479,18.21755178,171.75,171.7,18.64964886]
[1748495309100,5.82267456,171.75,171.7,18.64964886]
[1748495309293,18.21755178,171.75,171.7,18.64964886]
[1748495309503,5.82267456,171.75,171.7,18.64964886]
[1748495309811,12.39487722,171.72,171.6,1.6481]
[1748495310102,12.39487722,171.68,171.6,1.6481]
[1748495310306,5.8251296,171.67,171.63,12.39487722]
[1748495310494,5.8251296,171.67,171.62,38.39487722]
[1748495310913,5.8251296,171.67,171.63,18.64964886]
[1748495312892,5.8251296,171.67,171.63,31.04452608]
[1748495314506,18.22000682,171.67,171.63,18.64964886]
[1748495315123,68.6,171.66,171.65,18.64964886]
[1748495315406,68.6,171.66,171.65,12.39487722]
[1748495315593,68.6,171.66,171.65,57.32884922]
[1748495315788,68.6,171.71,171.66,18.64964886]
[1748495315988,68.6,171.7,171.66,18.933972]
[1748495316215,68.6,171.7,171.69,12.39487722]
[1748495320897,5.8231793,171.73,171.69,12.39487722]
[1748495321114,5.8231793,171.73,171.7,12.39487722]
[1748495321420,68.6,171.72,171.7,12.39487722]
[1748495322207,68.6,171.72,171.71,12.39487722]
[1748495323200,153.1229642,171.74,171.71,12.39487722]
[1748495325500,147.3,171.74,171.72,12.39487722]
[1748495325704,147.3,171.74,171.69,24.47406436]
[1748495325902,153.12276691,171.74,171.69,18.64964886]
[1748495326212,153.12276691,171.74,171.71,12.39487722]
[1748495327406,153.12276691,171.74,171.7,12.39487722]
[1748495328005,153.12276691,171.74,171.71,12.39487722]
[1748495328209,147.3,171.74,171.73,12.39487722]
[1748495328409,147.3,171.74,171.73,31.04452608]
[1748495328598,124.35155603,171.81,171.73,31.04452608]
[1748495328599,147.3,171.8,171.73,31.04452608]
[1748495328798,147.3,171.8,171.76,12.39487722]
[1748495329607,153.1208088,171.8,171.76,12.39487722]
[1748495330800,68.6,171.79,171.76,12.39487722]
[1748495331809,68.6,171.79,171.77,12.39487722]
[1748495332015,68.6,171.78,171.76,0.28432314]
[1748495332202,68.6,171.78,171.77,31.04452608]
[1748495333000,68.6,171.78,171.77,31.32884922]
[1748495335102,68.6,171.78,171.77,37.15058759]
[1748495335305,68.6,171.78,171.77,31.32884922]
[1748495336337,68.6,171.78,171.77,63.15058759]
[1748495336521,68.6,171.78,171.77,57.32884922]
[1748495336706,68.6,171.78,171.77,63.15058759]
[1748495338418,68.6,171.78,171.77,57.32884922]
[1748495339637,68.6,171.78,171.77,44.933972]
[1748495339832,68.6,171.78,171.77,57.32884922]
[1748495340208,68.6,171.78,171.77,44.933972]
[1748495340416,68.6,171.78,171.77,57.04452608]
[1748495342333,68.6,171.78,171.77,63.15058759]
[1748495344738,68.6,171.78,171.77,75.63058759]
[1748495346227,68.6,171.78,171.77,69.80884922]
[1748495346623,68.6,171.78,171.77,75.63058759]
[1748495346823,68.6,171.78,171.77,69.80884922]
[1748495347011,68.6,171.78,171.77,37.15058759]
[1748495350841,6.2027,171.88,171.81,18.64964886]
[1748495351146,18.4,171.84,171.83,26.0]
[1748495351322,18.4,171.84,171.83,57.04452608]
[1748495351524,18.4,171.84,171.83,57.32884922]
[1748495351857,18.4,171.88,171.84,18.64964886]
[1748495352155,18.4,171.88,171.87,31.04452608]
[1748495355575,18.4,171.88,171.84,18.64964886]
[1748495355867,18.4,171.88,171.83,64.72432314]
[1748495355868,24.21801256,171.88,171.86,31.04452608]
[1748495356549,18.4,171.87,171.86,31.04452608]
[1748495360241,18.4,171.87,171.86,44.64964886]
[1748495360542,18.4,171.87,171.86,57.04452608]
[1748495364281,18.4,171.87,171.86,63.14753885]
[1748495365864,18.4,171.87,171.86,57.32884922]
[1748495370454,18.4,171.87,171.86,31.32884922]
[1748495373775,5.81772609,171.89,171.86,18.64964886]
[1748495373988,12.39487722,171.88,171.83,12.39487722]
[1748495374159,12.39487722,171.88,171.84,18.64964886]
[1748495374351,12.39487722,171.87,171.83,18.64964886]
[1748495374775,5.81868963,171.86,171.83,18.64964886]
[1748495375161,18.21356685,171.86,171.83,18.64964886]
[1748495375368,12.39487722,171.85,171.83,18.64964886]
[1748495375572,30.79487722,171.84,171.79,18.64964886]
[1748495375777,12.39487722,171.81,171.77,18.64964886]
[1748495375981,12.39487722,171.8,171.76,26.0]
[1748495376276,6.5509,171.82,171.77,26.0]
[1748495376479,18.94577722,171.82,171.77,12.39487722]
[1748495376688,18.94577722,171.82,171.78,18.64964886]
[1748495376978,5.82038298,171.81,171.78,18.64964886]
[1748495378378,18.2152602,171.81,171.78,18.64964886]
[1748495380065,18.4,171.8,171.78,18.64964886]
[1748495381886,24.22073068,171.8,171.78,18.64964886]
[1748495384867,24.22073068,171.8,171.76,38.39487722]
[1748495385058,18.4,171.79,171.76,38.39487722]
[1748495385260,18.4,171.78,171.76,38.39487722]
[1748495387588,18.4,171.78,171.77,31.04452608]
[1748495387953,18.4,171.78,171.77,18.64964886]
[1748495388556,18.4,171.78,171.73,18.23845949]
[1748495388557,24.22139946,171.78,171.73,10.9]
[1748495388758,30.79487722,171.77,171.73,18.64964886]
[1748495389456,18.4,171.77,171.73,31.04452608]
[1748495389677,18.4,171.77,171.74,12.39487722]
[1748495389866,18.4,171.77,171.75,12.39487722]
[1748495390980,18.4,171.77,171.76,18.64964886]
[1748495391673,18.4,171.77,171.76,31.04452608]
[1748495391875,19.79331941,171.81,171.76,31.04452608]
[1748495392372,1.5778,171.81,171.78,18.64964886]
[1748495392581,5.82008675,171.82,171.78,31.04452608]
[1748495392779,18.4,171.81,171.78,31.04452608]
[1748495394669,18.4,171.81,171.78,12.39487722]
[1748495397792,18.4,171.8,171.78,12.39487722]
[1748495397987,18.4,171.8,171.79,18.64964886]
[1748495398289,18.4,171.8,171.79,31.04452608]
[1748495398465,18.4,171.8,171.79,31.32884922]
[1748495398670,18.4,171.8,171.79,18.933972]
[1748495398981,18.4,171.87,171.83,18.64964886]
[1748495399178,18.4,171.86,171.84,12.39487722]
[1748495400591,18.4,171.86,171.85,31.04452608]
[1748495400967,24.21739427,171.9,171.85,18.64964886]
[1748495401167,24.21739427,171.9,171.85,31.04452608]
[1748495401474,18.4,171.9,171.85,31.04452608]
[1748495401866,24.21741467,171.9,171.85,31.04452608]
[1748495402274,24.21741467,171.9,171.88,12.39487722]
[1748495402477,36.61229189,171.9,171.85,12.39487722]
[1748495402891,12.39487722,171.89,171.84,31.04452608]
[1748495403071,30.79487722,171.88,171.84,18.64964886]
[1748495403267,18.4,171.88,171.84,31.04452608]
[1748495403468,18.4,171.88,171.84,12.39487722]
[1748495404496,5.81835107,171.87,171.84,12.39487722]
[1748495406073,5.81835107,171.87,171.83,18.64964886]
[1748495406273,5.81835107,171.87,171.83,44.64964886]
[1748495406892,18.4,171.86,171.83,44.64964886]
[1748495409994,18.4,171.86,171.83,50.46932286]
[1748495410579,18.4,171.86,171.83,44.64964886]
[1748495412202,18.4,171.86,171.83,50.46932596]
[1748495412576,18.4,171.85,171.83,50.46932596]
[1748495412786,18.4,171.84,171.83,50.46932596]
[1748495415107,18.4,171.84,171.83,44.64964886]
[1748495418383,18.4,171.84,171.79,10.86]
[1748495418590,18.4,171.83,171.8,18.64964886]
[1748495418901,18.4,171.83,171.75,18.64964886]
[1748495419105,18.4,171.82,171.75,18.64964886]
[1748495419401,24.22009484,171.82,171.76,26.0]
[1748495419610,24.22009484,171.82,171.75,0.28432314]
[1748495419987,24.22009484,171.82,171.78,18.64964886]
[1748495423788,18.4,171.81,171.76,18.64964886]
[1748495424008,18.4,171.8,171.74,18.64964886]
[1748495424890,5.82106059,171.79,171.74,18.64964886]
[1748495425211,18.4,171.78,171.74,18.64964886]
[1748495425718,18.4,171.78,171.74,24.47237529]
[1748495427315,18.4,171.78,171.75,18.933972]
[1748495429514,18.4,171.78,171.75,6.10663708]
[1748495430419,18.4,171.77,171.76,44.64964886]
[1748495433018,18.4,171.77,171.76,50.47172617]
[1748495433694,18.4,171.82,171.77,18.64964886]
[1748495434908,18.4,171.82,171.77,24.47122666]
[1748495435504,24.22007959,171.82,171.77,18.64964886]
[1748495435824,18.4,171.82,171.77,24.4713037]
[1748495438330,18.4,171.82,171.75,18.64964886]
[1748495439230,18.4,171.81,171.75,18.64964886]
[1748495439407,18.4,171.81,171.79,18.64964886]
[1748495443627,18.4,171.81,171.79,24.4706701]
[1748495444328,18.4,171.85,171.8,0.28432314]
[1748495445023,18.4,171.85,171.82,18.64964886]
[1748495445208,18.4,171.84,171.82,18.64964886]
[1748495447338,18.4,171.84,171.82,24.46962349]
[1748495448126,18.4,171.83,171.82,24.46962349]
[1748495448532,18.4,171.83,171.82,24.75394663]
[1748495454043,18.4,171.88,171.83,0.28432314]
[1748495456314,153.11769844,171.89,171.84,18.64964886]
[1748495456315,18.4,171.87,171.84,18.64964886]
[1748495457543,18.4,171.87,171.84,5.819314]
[1748495459549,18.4,171.87,171.83,18.933972]
[1748495459720,18.4,171.87,171.85,18.64964886]
[1748495459920,147.3,171.89,171.85,18.64964886]
[1748495459921,18.4,171.86,171.85,18.64964886]
[1748495460648,18.4,171.86,171.85,31.05358616]